lending/lending_fUSD_20241124
["ID","MTS","AMOUNT","RATE_DAILY","PERIOD"]
[343189366,1732423868368,-151.271813,0.00048799,2]
[343189367,1732423868378,-151.271813,0.00048799,2]
[343189368,1732423868389,-151.271813,0.00048799,2]
[343189369,1732423868399,-151.271813,0.00048799,2]
[343189370,1732423868410,-151.271813,0.00048799,2]
[343189371,1732423868420,-500.0,0.00048799,2]
[343189372,1732423868430,-500.0,0.00048799,2]
[343189373,1732423868440,-428.58047317,0.00048799,2]
[343189374,1732423868450,-500.0,0.00048799,2]
[343189375,1732423868459,-500.0,0.00048799,2]
[343189376,1732423868468,-500.0,0.00048799,2]
[343189377,1732423868478,-500.0,0.00048799,2]
[343189378,1732423868487,-500.0,0.00048799,2]
[343189379,1732423868498,-500.0,0.00048799,2]
[343189380,1732423868508,-500.0,0.00048799,2]
[343189381,1732423868518,-162.89381516,0.00048799,2]
[343189382,1732423868531,-1275.76,0.00048799,2]
[343189383,1732423868542,-1275.76,0.00048799,2]
[343189384,1732423868552,-1275.76,0.00048799,2]
[343189385,1732423868562,-1275.76,0.00048799,2]
[343189386,1732423868572,-1275.76,0.00048799,2]
[343189387,1732423868582,-1275.76,0.00048799,2]
[343189388,1732423868592,-1275.76,0.00048799,2]
[343189389,1732423868603,-1275.76,0.00048799,2]
[343189390,1732423868613,-1275.90338796,0.00048799,2]
[343189391,1732423868623,-500.0,0.00048799,2]
[343189392,1732423868633,-500.0,0.00048799,2]
[343189393,1732423868644,-386.51000634,0.00048799,2]
[343189394,1732423868654,-1217.85,0.00048799,2]
[343189395,1732423868664,-1217.85,0.00048799,2]
[343189396,1732423868674,-1217.85,0.00048799,2]
[343189397,1732423868684,-1217.85,0.00048799,2]
[343189398,1732423868693,-1217.85,0.00048799,2]
[343189399,1732423868703,-1217.85,0.00048799,2]
[343189400,1732423868712,-1217.89929095,0.00048799,2]
[343189401,1732423868721,-500.0,0.00048799,2]
[343189402,1732423868731,-500.0,0.00048799,2]
[343189403,1732423868741,-500.0,0.00048799,2]
[343189404,1732423868750,-476.21154327,0.00048799,2]
[343189405,1732423868760,-690.04,0.00048799,2]
[343189406,1732423868770,-690.04,0.00048799,2]
[343189407,1732423868782,-690.04,0.00048799,2]
[343189408,1732423868792,-690.04,0.00048799,2]
[343189409,1732423868801,-690.04,0.00048799,2]
[343189410,1732423868811,-690.04,0.00048799,2]
[343189411,1732423868821,-690.05854338,0.00048799,2]
[343189412,1732423868830,-619.07,0.00048799,2]
[343189413,1732423868839,-619.07,0.00048799,2]
[343189414,1732423868849,-619.07,0.00048799,2]
[343189415,1732423868858,-619.07,0.00048799,2]
[343189416,1732423868867,-619.07,0.00048799,2]
[343189417,1732423868877,-619.07,0.00048799,2]
[343189418,1732423868886,-619.24102477,0.00048799,2]
[343189419,1732423868896,-500.0,0.00048799,2]
[343189420,1732423868905,-500.0,0.00048799,2]
[343189421,1732423869022,-500.0,0.00048799,2]
[343189422,1732423869035,-500.0,0.00048799,2]
[343189423,1732423869044,-1207.56,0.00048799,2]
[343189424,1732423869054,-1207.56,0.00048799,2]
[343189425,1732423869064,-1207.56,0.00048799,2]
[343189426,1732423869074,-1207.56,0.00048799,2]
[343189427,1732423869083,-1207.56,0.00048799,2]
[343189428,1732423869092,-1207.56,0.00048799,2]
[343189429,1732423869102,-1207.75,0.00048799,2]
[343189430,1732423869112,-519.93,0.00048799,2]
[343189431,1732423869124,-519.93,0.00048799,2]
[343189432,1732423869133,-1488.78,0.00048799,2]
[343189433,1732423869143,-1488.78,0.00048799,2]
[343189434,1732423869152,-1488.78,0.00048799,2]
[343189435,1732423869162,-519.93,0.00048799,2]
[343189436,1732423869171,-1488.78,0.00048799,2]
[343189437,1732423869181,-519.93,0.00048799,2]
[343189438,1732423869191,-1488.78,0.00048799,2]
[343189439,1732423869201,-519.93,0.00048799,2]
[343189440,1732423869211,-1488.78,0.00048799,2]
[343189441,1732423869220,-519.93,0.00048799,2]
[343189442,1732423869230,-1488.85121789,0.00048799,2]
[343189443,1732423869239,-1396.28,0.00048799,2]
[343189444,1732423869249,-519.93,0.00048799,2]
[343189445,1732423869258,-1396.28,0.00048799,2]
[343189446,1732423869267,-519.93,0.00048799,2]
[343189447,1732423869279,-1396.28,0.00048799,2]
[343189448,1732423869288,-520.05209539,0.00048799,2]
[343189449,1732423869298,-1396.28,0.00048799,2]
[343189450,1732423869307,-1396.36481911,0.00048799,2]
[343189451,1732423869317,-996.32,0.00048799,2]
[343189452,1732423869326,-996.32,0.00048799,2]
[343189453,1732423869337,-996.32,0.00048799,2]
[343189454,1732423869347,-996.32,0.00048799,2]
[343189455,1732423869356,-996.32,0.00048799,2]
[343189456,1732423869366,-996.32,0.00048799,2]
[343189457,1732423869376,-996.32,0.00048799,2]
[343189458,1732423869385,-627.1,0.00048799,2]
[343189459,1732423869395,-996.32,0.00048799,2]
[343189460,1732423869405,-627.1,0.00048799,2]
[343189461,1732423869415,-996.32,0.00048799,2]
[343189462,1732423869424,-627.1,0.00048799,2]
[343189463,1732423869434,-627.1,0.00048799,2]
[343189464,1732423869444,-627.1,0.00048799,2]
[343189465,1732423869454,-627.1,0.00048799,2]
[343189466,1732423869463,-627.3201915,0.00048799,2]
[343189467,1732423869474,-656.15,0.00048799,2]
[343189468,1732423869483,-656.15,0.00048799,2]
[343189469,1732423869493,-656.15,0.00048799,2]
[343189470,1732423869503,-656.15,0.00048799,2]
[343189471,1732423869512,-656.15,0.00048799,2]
[343189472,1732423869522,-656.15,0.00048799,2]
[343189473,1732423869532,-656.15,0.00048799,2]
[343189474,1732423869542,-656.15,0.00048799,2]
[343189475,1732423869551,-656.20400796,0.00048799,2]
[343189476,1732423869561,-710.04,0.00048799,2]
[343189477,1732423869570,-710.04,0.00048799,2]
[343189478,1732423869580,-710.04,0.00048799,2]
[343189479,1732423869589,-710.04,0.00048799,2]
[343189480,1732423869603,-710.21904162,0.00048799,2]
[343189481,1732423869613,-500.0,0.00048799,2]
[343189482,1732423869622,-500.0,0.00048799,2]
[343189483,1732423869631,-512.29025098,0.00048799,2]
[343189484,1732423869642,-1725.2,0.00048799,2]
[343189485,1732423869651,-1725.2,0.00048799,2]
[343189486,1732423869660,-1725.2,0.00048799,2]
[343189487,1732423869671,-1725.2,0.00048799,2]
[343189488,1732423869680,-1725.2,0.00048799,2]
[343189489,1732423869689,-1725.2,0.00048799,2]
[343189490,1732423869699,-6640.85,0.00048799,2]
[343189491,1732423869709,-1725.2,0.00048799,2]
[343189492,1732423869720,-6640.85,0.00048799,2]
[343189493,1732423869729,-1725.2,0.00048799,2]
[343189494,1732423869739,-6640.85,0.00048799,2]
[343189495,1732423869748,-6640.85,0.00048799,2]
[343189496,1732423869758,-6640.85,0.00048799,2]
[343189497,1732423869768,-6640.85,0.00048799,2]
[343189498,1732423869779,-6640.99327196,0.00048799,2]
[343189499,1732423869788,-572.16,0.00048799,2]
[343189500,1732423869798,-572.16,0.00048799,2]
[343189501,1732423869812,-572.16,0.00048799,2]
[343189502,1732423869822,-572.16,0.00048799,2]
[343189503,1732423869831,-572.16,0.00048799,2]
[343189504,1732423869841,-572.16,0.00048799,2]
[343189505,1732423869850,-572.37640363,0.00048799,2]
[343189506,1732423869859,-500.0,0.00048799,2]
[343189507,1732423869869,-500.0,0.00048799,2]
[343189508,1732423869878,-500.0,0.00048799,2]
[343189509,1732423869889,-500.0,0.00048799,2]
[343189510,1732423869899,-500.0,0.00048799,2]
[343189511,1732423869909,-500.0,0.00048799,2]
[343189512,1732423869920,-500.0,0.00048799,2]
[343189513,1732423869931,-495.36,0.00048799,2]
[343189514,1732423869942,-569.32,0.00048799,2]
[343189515,1732423869952,-500.0,0.00048799,2]
[343189516,1732423869963,-1899.55,0.00048799,2]
[343189517,1732423869973,-1899.55,0.00048799,2]
[343189518,1732423869983,-500.0,0.00048799,2]
[343189519,1732423869993,-1899.55,0.00048799,2]
[343189520,1732423870002,-500.0,0.00048799,2]
[343189521,1732423870012,-1899.55,0.00048799,2]
[343189522,1732423870022,-500.0,0.00048799,2]
[343189523,1732423870036,-1899.55,0.00048799,2]
[343189524,1732423870045,-492.26,0.00048799,2]
[343189525,1732423870054,-1899.55,0.00048799,2]
[343189526,1732423870063,-1899.61,0.00048799,2]
[343189527,1732423870073,-784.62,0.00048799,2]
[343189528,1732423870083,-784.62,0.00048799,2]
[343189529,1732423870092,-784.62,0.00048799,2]
[343189530,1732423870101,-784.62,0.00048799,2]
[343189531,1732423870111,-784.63483972,0.00048799,2]
[343189532,1732423870120,-2000000.0,0.000488,120]
[343189533,1732423870129,-1000.0,0.000488,120]
[343189534,1732423870139,-3155.37491724,0.000488,30]
[343189535,1732423870148,-720.89665087,0.000488,30]
[343189536,1732423870161,-151.0,0.000488,14]
[343189537,1732423870170,-151.0,0.000488,14]
[343189538,1732423870180,-151.0,0.000488,14]
[343189539,1732423870189,-151.0,0.000488,14]
[343189540,1732423870198,-151.0,0.000488,14]
[343189541,1732423870208,-151.0,0.000488,14]
[343189542,1732423870218,-151.0,0.000488,14]
[343189543,1732423870228,-151.0,0.000488,14]
[343189544,1732423870238,-151.0,0.000488,14]
[343189545,1732423870247,-151.0,0.000488,14]
[343189546,1732423870257,-151.0,0.000488,14]
[343189547,1732423870267,-170.453531,0.000488,14]
[343189548,1732423870280,-170.453531,0.000488,14]
[343189549,1732423870289,-168.703261,0.000488,14]
[343189550,1732423870298,-168.703261,0.000488,14]
[343189551,1732423870310,-270.618127,0.000488,14]
[343189552,1732423870320,-202.940442,0.000488,14]
[343189553,1732423870330,-202.940442,0.000488,14]
[343189554,1732423870340,-265.825461,0.000488,14]
[343189555,1732423870349,-265.825461,0.000488,14]
[343189556,1732423870359,-154.095177,0.000488,14]
[343189557,1732423870369,-151.0,0.000488,14]
[343189558,1732423870378,-151.0,0.000488,14]
[343189559,1732423870388,-230.209469,0.000488,14]
[343189560,1732423870397,-230.209469,0.000488,14]
[343189561,1732423870407,-1133.564634,0.000488,14]
[343189562,1732423870416,-1133.564634,0.000488,14]
[343189563,1732423870426,-151.0,0.000488,14]
[343189564,1732423870435,-8500.0,0.000488,17]
[343189565,1732423870444,-210.100158,0.000488,14]
[343189566,1732423870454,-151.0,0.000488,14]
[343189567,1732423870463,-732.244902,0.000488,14]
[343189568,1732423870472,-732.244902,0.000488,14]
[343189569,1732423870483,-151.0,0.000488,14]
[343189570,1732423870492,-3695.772711,0.000488,14]
[343189571,1732423870502,-151.0,0.000488,14]
[343189572,1732423870512,-3695.772711,0.000488,14]
[343189573,1732423870522,-151.0,0.000488,14]
[343189574,1732423870535,-151.0,0.000488,14]
[343189575,1732423870545,-151.616903,0.000488,14]
[343189576,1732423870556,-151.0,0.000488,7]
[343189577,1732423870566,-271.756149,0.000488,7]
[343189578,1732423870576,-598.100239,0.000488,14]
[343189579,1732423870585,-1213.093706,0.000488,14]
[343189580,1732423870598,-598.100239,0.000488,14]
[343189581,1732423870608,-1213.093706,0.000488,14]
[343189582,1732423870618,-151.0,0.000488,14]
[343189583,1732423870628,-151.0,0.000488,14]
[343189584,1732423870638,-417.95,0.000488,7]
[343189585,1732423870648,-417.95,0.000488,7]
[343189586,1732423870658,-164.422747,0.000488,14]
[343189587,1732423870668,-900.0,0.00048866,120]
[343189588,1732423870680,-1700.0,0.000489,17]
[343189589,1732423870690,-150.0,0.0004895,2]
[343189590,1732423870699,-150.0,0.0004895,2]
[343189591,1732423870709,-19930.0,0.00049,7]
[343189592,1732423870719,-13663.73820109,0.00049,120]
[343189593,1732423870728,-150.0,0.00049,14]
[343189594,1732423870738,-322.47537613,0.00049,2]
[343189595,1732423870748,-1106.15,0.00049041,120]
[343189596,1732423870757,-159.06,0.00049087,2]
[343189597,1732423870767,-815.0,0.0004913,2]
[343189598,1732423870778,-150.0,0.0004913,2]
[343189599,1732423870787,-152.98,0.00049137,120]
[343189600,1732423870797,-500.0,0.0004914,120]
[343189601,1732423870807,-322.33276782,0.00049148,2]
[343189602,1732423870816,-1996.04651992,0.00049234,15]
[343189603,1732423870826,-2000.0,0.00049253,2]
[343189604,1732423870835,-2000.0,0.00049253,2]
[343189605,1732423870845,-193.0,0.00049283,10]
[343189606,1732423870854,-1000.0,0.00049315,9]
[343189607,1732423870863,-1000.0,0.00049315,9]
[343189608,1732423870872,-1000.0,0.00049315,9]
[343189609,1732423870882,-1000.0,0.00049315,9]
[343189610,1732423870891,-1000.0,0.00049315,9]
[343189611,1732423870900,-1000.0,0.00049315,9]
[343189612,1732423870910,-1000.0,0.00049315,9]
[343189613,1732423870919,-586.0,0.00049315,9]
[343189614,1732423870928,-1000.0,0.00049315,9]
[343189615,1732423870937,-1000.0,0.00049315,9]
[343189616,1732423870947,-1000.0,0.00049315,9]
[343189617,1732423870955,-1000.0,0.00049315,9]
[343189618,1732423870965,-1000.0,0.00049315,9]
[343189619,1732423870974,-1000.0,0.00049315,9]
[343189620,1732423870983,-1000.0,0.00049315,9]
[343189621,1732423870992,-1000.0,0.00049315,9]
[343189622,1732423871001,-1000.0,0.00049315,9]
[343189623,1732423871010,-1000.0,0.00049315,9]
[343189624,1732423871020,-1000.0,0.00049315,9]
[343189625,1732423871032,-1000.0,0.00049315,9]
[343189626,1732423871041,-1000.0,0.00049315,9]
[343189627,1732423871050,-1000.0,0.00049315,9]
[343189628,1732423871059,-1000.0,0.00049315,9]
[343189629,1732423871069,-1000.0,0.00049315,9]
[343189630,1732423871078,-1000.0,0.00049315,9]
[343189631,1732423871087,-1000.0,0.00049315,9]
[343189632,1732423871096,-1000.0,0.00049315,9]
[343189633,1732423871217,-1000.0,0.00049315,9]
[343189634,1732423871227,-1000.0,0.00049315,9]
[343189635,1732423871237,-1000.0,0.00049315,9]
[343189636,1732423871247,-1119.0,0.00049315,9]
[343189637,1732423871256,-151.0,0.00049315,30]
[343189638,1732423871266,-151.0,0.00049315,30]
[343189639,1732423871276,-283.025719,0.00049315,30]
[343189640,1732423871286,-1000.0,0.00049315,9]
[343189641,1732423871295,-1000.0,0.00049315,9]
[343189642,1732423871305,-875.0,0.00049315,9]
[343189643,1732423871315,-10706.25749392,0.00049316,120]
[343189644,1732423871325,-900.0,0.00049414,120]
[343189645,1732423871336,-1106.15,0.00049452,120]
[343189646,1732423871346,-53441.04480991,0.000495,2]
[343189647,1732423871356,-82500.0,0.000495,2]
[343189648,1732423871366,-10000.0,0.000495,120]
[343189649,1732423871376,-1382.5822,0.000495,30]
[343189650,1732423871386,-1093.6105,0.000495,30]
[343189651,1732423871396,-2179.6072,0.000495,30]
[343189652,1732423871406,-691.2911,0.000495,30]
[343189653,1732423871415,-2000.0,0.00049538,120]
[343189654,1732423871425,-2000.0,0.00049609,2]
[343189655,1732423871435,-2000.0,0.00049609,2]
[343189656,1732423871445,-700.0,0.00049688,120]
[343189657,1732423871455,-500.0,0.00049688,120]
[343189658,1732423871464,-500.0,0.000497,120]
[343189659,1732423871474,-2000.0,0.0004975,2]
[343189660,1732423871483,-574.43,0.00049754,2]
[343189661,1732423871494,-204.0,0.0004976,30]
[343189662,1732423871504,-204.0,0.0004976,30]
[343189663,1732423871514,-201.0,0.0004976,30]
[343189664,1732423871526,-317.96,0.000498,118]
[343189665,1732423871536,-1010.8,0.000498,118]
[343189666,1732423871546,-155.31,0.00049813,2]
[343189667,1732423871556,-203.0,0.0004985,30]
[343189668,1732423871565,-206.0,0.0004985,30]
[343189669,1732423871575,-1000.0,0.00049861,120]
[343189670,1732423871585,-1106.15,0.00049863,120]
[343189671,1732423871597,-390.82,0.00049877,7]
[343189672,1732423871610,-336004.86127387,0.0004988,120]
[343189673,1732423871827,-281.51634978,0.0004988,120]
[343189674,1732423871846,-500.0,0.00043496,2]
[343189675,1732423871857,-361.0,0.00043979,2]
[343189676,1732423871866,-18588.79581731,0.0004988,120]
[343189677,1732423871877,-3151.79632845,0.0004988,120]
[343189678,1732423872320,-500.0,0.00043396,2]
[343189679,1732423872330,-500.0,0.00043396,2]
[343189680,1732423872340,-27.26572292,0.00043495,2]
[343189681,1732423872353,-472.73427708,0.00043495,2]
[343189682,1732423872363,-256.27855447,0.00043495,2]
[343189683,1732423872513,-500.0,0.00043396,2]
[343189684,1732423872526,-383.7,0.00043396,2]
[343189685,1732423872549,-116.3,0.00043396,2]
[343189686,1732423872559,-243.72144553,0.00043495,2]
[343189687,1732423872569,-500.0,0.00043496,2]
[343189688,1732423872578,-500.000002,0.00043496,2]
[343189689,1732423872587,-384.68314375,0.00043496,2]
[343189690,1732423872617,-115.31685625,0.00043496,2]
[343189691,1732423872626,-208.72481015,0.00043496,2]
[343189692,1732423872637,-500.0,0.00043496,2]
[343189693,1732423872647,-500.0,0.00043496,2]
[343189694,1732423872657,-500.0,0.00043496,2]
[343189695,1732423872666,-500.0,0.00043496,2]
[343189696,1732423872675,-500.0,0.00043496,2]
[343189697,1732423872686,-500.0,0.00043496,2]
[343189698,1732423872696,-500.0,0.00043594,2]
[343189699,1732423872705,-500.0,0.00043594,2]
[343189700,1732423872714,-83.6337616,0.00043595,2]
[343189701,1732423873077,-334.0,0.00043396,2]
[343189702,1732423873092,-166.0,0.00043396,2]
[343189703,1732423873101,-334.0,0.00043396,2]
[343189704,1732423873119,-166.0,0.00043396,2]
[343189705,1732423873129,-500.0,0.00043496,2]
[343189706,1732423873138,-500.0,0.00043496,2]
[343189707,1732423873147,-500.0,0.00043496,2]
[343189708,1732423873156,-500.0,0.00043496,2]
[343189709,1732423873165,-500.0,0.00043496,2]
[343189710,1732423873175,-416.3662384,0.00043595,2]
[343189711,1732423873184,-500.0,0.00043595,2]
[343189712,1732423873193,-357.87207566,0.00043595,2]
[343189713,1732423873205,-142.12792434,0.00043595,2]
[343189714,1732423873214,-500.0,0.00043608,2]
[343189715,1732423873225,-500.0,0.00043608,2]
[343189716,1732423873234,-500.0,0.00043608,2]
[343189717,1732423873243,-508.24168693,0.00043609,2]
[343189718,1732423873253,-504.6129005,0.00043609,2]
[343189719,1732423873263,-500.0,0.00043609,2]
[343189720,1732423873272,-500.0,0.00043609,2]
[343189721,1732423873283,-500.0,0.00043609,2]
[343189722,1732423873293,-500.0,0.00043609,2]
[343189723,1732423873302,-500.0,0.00043609,2]
[343189724,1732423873313,-500.0,0.00043898,2]
[343189725,1732423873323,-500.0,0.00043898,2]
[343189726,1732423873333,-500.0,0.00043898,2]
[343189727,1732423873342,-416.1274821,0.00043898,2]
[343189728,1732423873351,-500.0,0.00043898,2]
[343189729,1732423873363,-500.0,0.00043899,2]
[343189730,1732423873372,-500.0,0.00043899,2]
[343189731,1732423873382,-500.0,0.00043899,2]
[343189732,1732423873392,-500.0,0.00043899,2]
[343189733,1732423873402,-500.0,0.00043899,2]
[343189734,1732423873412,-500.0,0.00043899,2]
[343189735,1732423873422,-500.0,0.00043899,2]
[343189736,1732423873432,-500.0,0.00043899,2]
[343189737,1732423873441,-500.0,0.00043899,2]
[343189738,1732423873451,-500.0,0.00043899,2]
[343189739,1732423873461,-322.14,0.00043899,2]
[343189740,1732423873474,-500.0,0.00043899,2]
[343189741,1732423873483,-500.0,0.00043899,2]
[343189742,1732423873493,-500.0,0.00043899,2]
[343189743,1732423873503,-500.0,0.00043899,2]
[343189744,1732423873513,-106.75000613,0.00043899,2]
[343189745,1732423873537,-393.24999387,0.00043899,2]
[343189746,1732423873546,-500.0,0.00043899,2]
[343189747,1732423873556,-263.69,0.00043899,2]
[343189748,1732423873565,-500.0,0.00043899,2]
[343189749,1732423873575,-500.0,0.00043899,2]
[343189750,1732423873585,-500.0,0.00043899,2]
[343189751,1732423873596,-500.0,0.00043899,2]
[343189752,1732423873609,-500.0,0.00043899,2]
[343189753,1732423873618,-76.17604158,0.00043978,2]
[343189754,1732423873649,-234.34383688,0.00043899,2]
[343189755,1732423873659,-423.82395842,0.00043978,2]
[343189756,1732423873670,-500.0,0.00043978,2]
[343189757,1732423873679,-438.06,0.00043978,2]
[343189758,1732423873689,-500.0,0.00043978,2]
[343189759,1732423873699,-500.0,0.00043979,2]
[343189760,1732423873709,-500.0,0.00043979,2]
[343189761,1732423873719,-500.0,0.00043979,2]
[343189762,1732423873728,-500.0,0.00043979,2]
[343189763,1732423873738,-151.0,0.00043979,14]
[343189764,1732423873747,-590.04,0.00043979,2]
[343189765,1732423873757,-500.0,0.00043979,2]
[343189766,1732423873767,-500.0,0.00043979,2]
[343189767,1732423873780,-500.0,0.00043979,2]
[343189768,1732423873790,-500.0,0.00043979,2]
[343189769,1732423873800,-549.65414883,0.00043979,2]
[343189770,1732423873809,-500.0,0.00043979,2]
[343189771,1732423873819,-36.47163485,0.00043979,2]
[343189774,1732423952465,186.06,0.00034909,30]
[343189779,1732424349303,508.61,0.00035,4]
[343189780,1732424359929,500.0,0.00035,4]
[343189781,1732424386067,500.0,0.00035,4]
[343189782,1732424424996,-250.0,0.00035,4]
[343189783,1732424428730,-197.36033964,0.00035,4]
[343189784,1732424439464,-52.63966036,0.00035,4]
[343189785,1732424439484,-97.36033964,0.00035,4]
[343189786,1732424440111,-150.0,0.00035,4]
[343189787,1732424440679,-150.0,0.00035,4]
[343189788,1732424448736,248.84272232,0.000349,2]
[343189809,1732425031755,-284.0993925,0.000398,2]
[343189815,1732425037463,-213.58605214,0.000398,2]
[343189816,1732425037473,-347.7434,0.00039888,7]
[343189817,1732425037483,-245.12078206,0.000399,2]
[343189818,1732425037494,-377.01199512,0.000399,2]
[343189819,1732425037504,-1222.0,0.0004,2]
[343189820,1732425037514,-1222.0,0.0004,2]
[343189821,1732425037523,-1222.0,0.0004,2]
[343189822,1732425037533,-1222.0,0.0004,2]
[343189823,1732425037542,-526.37,0.00040487,2]
[343189824,1732425037552,-158.37,0.00041096,2]
[343189825,1732425037562,-155.53,0.00041096,2]
[343189826,1732425037571,-250.0,0.00041884,120]
[343189827,1732425037583,-1000.0,0.00041939,2]
[343189828,1732425037593,-1500.0,0.00041956,120]
[343189829,1732425037603,-174.4,0.00042014,2]
[343189830,1732425037613,-150.45,0.00042019,2]
[343189831,1732425037622,-180.54,0.00042154,120]
[343189832,1732425037632,-250.0,0.00042182,2]
[343189833,1732425037642,-250.0,0.00042217,2]
[343189834,1732425037653,-151.75,0.00042217,2]
[343189835,1732425037662,-150.0,0.00042231,2]
[343189836,1732425037673,-152.98,0.0004252,120]
[343189837,1732425037683,-300.0,0.000427,15]
[343189838,1732425037693,-245.63551604,0.00042751,2]
[343189839,1732425037747,-280.73448396,0.00042751,2]
[343189840,1732425037757,-258.10051604,0.000428,15]
[343189849,1732425039487,-500.0,0.00041939,2]
[343189850,1732425039498,-441.89948396,0.000428,15]
[343189851,1732425039507,-1100.0,0.000429,15]
[343189852,1732425039517,-1000.0,0.00043,9]
[343189853,1732425039525,-925.0,0.00043,7]
[343189854,1732425039535,-6220.04788578,0.00043096,15]
[343189855,1732425039544,-1200.0,0.00043096,4]
[343189856,1732425039554,-857.0,0.00043096,4]
[343189857,1732425039563,-6891.5255,0.00043097,2]
[343189858,1732425039573,-1949.2477,0.00043097,2]
[343189859,1732425039582,-974.5596,0.00043097,2]
[343189860,1732425039591,-6298.1543,0.00043097,2]
[343189861,1732425039601,-240.773,0.00043097,66]
[343189862,1732425039610,-164.92303723,0.00043097,28]
[343189863,1732425039619,-322.33276782,0.00043097,2]
[343189864,1732425039629,-7399.28623317,0.00043195,7]
[343189870,1732425042712,-500.0,0.00042231,2]
[343189871,1732425042726,-87.64718996,0.00042527,120]
[343189881,1732425045574,-65.33281004,0.00042527,120]
[343189882,1732425045584,-500.0,0.00043096,15]
[343189883,1732425045595,-12600.71376683,0.00043195,7]
[343189884,1732425045606,-355.68234477,0.00043195,31]
[343189885,1732425045617,-500.0,0.00043195,2]
[343189886,1732425045628,-500.0,0.00043195,2]
[343189887,1732425045638,-500.0,0.00043195,2]
[343189888,1732425045649,-500.0,0.00043195,2]
[343189889,1732425045661,-1893.35116534,0.00043196,30]
[343189890,1732425045672,-500.0,0.00043196,2]
[343189891,1732425045683,-500.0,0.00043196,2]
[343189892,1732425045695,-500.0,0.00043196,2]
[343189893,1732425045706,-500.0,0.00043196,2]
[343189894,1732425045717,-500.0,0.00043196,2]
[343189895,1732425045728,-500.0,0.00043196,2]
[343189896,1732425045739,-260.40906456,0.00043196,2]
[343189897,1732425045752,-500.0,0.00043196,2]
[343189898,1732425045763,-500.0,0.00043196,2]
[343189899,1732425045773,-500.0,0.00043196,2]
[343189900,1732425045784,-500.0,0.00043196,2]
[343189901,1732425045794,-500.0,0.00043196,2]
[343189902,1732425045804,-500.0,0.00043196,2]
[343189903,1732425045814,-230.96630825,0.00043196,2]
[343189904,1732425045836,-500.0,0.00043195,2]
[343189905,1732425045846,-277.92596179,0.00043196,2]
[343189906,1732425045857,-97.54685821,0.00043196,2]
[343189923,1732425361658,754.57738359,0.00034423,30]
[343189929,1732425480157,250.0,0.00031,2]
[343189930,1732425481279,300.0,0.00033,2]
[343189931,1732425482362,350.0,0.00035,2]
[343189933,1732426030307,206.04525502,0.000225,2]
[343189936,1732426069537,4709.34960465,0.00028,4]
[343189964,1732426231719,-473.73,0.00040293,2]
[343189965,1732426231729,-156.61,0.00041096,2]
[343189966,1732426231739,-156.13,0.00041096,2]
[343189967,1732426231748,-519.0,0.00041096,120]
[343189968,1732426231758,-250.0,0.00041992,2]
[343189969,1732426231766,-174.4,0.00042035,2]